fUSD/lending_fUSD_20260217
["ID","MTS","AMOUNT","RATE_DAILY","PERIOD"]
[405815418,1771333855407,-400.0,0.00033151,30]
[405815421,1771333855417,-153.344252,0.00033221,31]
[405815423,1771333855426,-235.936333,0.00033221,31]
[405815425,1771333855436,-44490.0,0.00033221,20]
[405815427,1771333855445,-1000.0,0.00033316,7]
[405815429,1771333855455,-435.55,0.00033329,30]
[405815431,1771333855464,-360.45457926,0.00033333,30]
[405815433,1771333855474,-461.69,0.000334,14]
[405815435,1771333855483,-5008.1800114,0.00033464,10]
[405815437,1771333855492,-1215.47041278,0.000335,2]
[405815439,1771333855502,-2045.7,0.00033574,5]
[405815441,1771333855511,-1000.0,0.0003359,7]
[405815443,1771333855520,-1145.15,0.000336,14]
[405815444,1771333855530,-1164.0,0.00033649,2]
[405815447,1771333855540,-3491.0,0.00033649,2]
[405815449,1771333855549,-1338.0,0.00033649,2]
[405815451,1771333855559,-617.0,0.00033649,2]
[405815453,1771333855568,-7397.51,0.00033699,2]
[405815455,1771333855577,-29268.35404022,0.00033729,5]
[405815457,1771333855587,-2835.0,0.00033835,11]
[405815459,1771333855596,-2835.0,0.00033853,11]
[405815461,1771333855605,-1000.0,0.00033864,7]
[405815462,1771333855615,-152.0,0.00033948,9]
[405815465,1771333855624,-500.0,0.00034,120]
[405815467,1771333855634,-3701.0,0.00034,7]
[405815468,1771333855643,-947.22,0.000341,30]
[405815470,1771333855653,-1000.0,0.00034138,7]
[405815473,1771333855662,-2380.71,0.000342,2]
[405815475,1771333855672,-44490.0,0.00034281,20]
[405815477,1771333855682,-1000.0,0.00034412,7]
[405815479,1771333855692,-400.0,0.00034521,30]
[405815481,1771333855701,-1000.0,0.00034657,2]
[405815483,1771333855710,-1000.0,0.00034657,2]
[405815485,1771333855720,-1000.0,0.00034657,2]
[405815487,1771333855729,-1000.0,0.00034657,2]
[405815489,1771333855738,-1000.0,0.00034657,2]
[405815491,1771333855748,-1574.0,0.00034686,7]
[405815493,1771333855758,-150.0,0.00034696,2]
[405815495,1771333855766,-399.8,0.000347,14]
[405815497,1771333855776,-2835.0,0.00034709,11]
[405815499,1771333855785,-1500.0,0.00034795,2]
[405815501,1771333855795,-176.0933992,0.00034941,2]
[405815503,1771333855804,-190.88918936,0.00035,3]
[405815505,1771333855814,-9917.64356668,0.00035097,5]
[405815507,1771333855823,-151.0,0.00035338,14]
[405815509,1771333855833,-44490.0,0.00035342,20]
[405815511,1771333855842,-152.0,0.00035354,10]
[405815513,1771333855852,-151.0,0.00035373,43]
[405815515,1771333855862,-169.26,0.00035479,120]
[405815517,1771333855871,-1209.0,0.00035551,2]
[405815519,1771333855880,-360.45457926,0.00035556,30]
[405815521,1771333855889,-2452.0,0.00035585,2]
[405815523,1771333855900,-5973.0,0.00035585,2]
[405815525,1771333855909,-587.30769231,0.00035589,30]
[405815527,1771333855919,-466.22762301,0.00035589,30]
[405815529,1771333855928,-177.53569362,0.000356,120]
[405815531,1771333855938,-514.24833102,0.000356,120]
[405815533,1771333855948,-276.58794731,0.000356,120]
[405815535,1771333855957,-192.85360976,0.000356,120]
[405815537,1771333855966,-185.54949125,0.000356,120]
[405815539,1771333855975,-182.77253775,0.000356,120]
[405815541,1771333855985,-161.43322928,0.000356,120]
[405815543,1771333855994,-213.40183206,0.000356,120]
[405815545,1771333856004,-427.73546867,0.000356,120]
[405815547,1771333856014,-185.08393304,0.000356,120]
[405815550,1771333856025,-163.54560107,0.000356,120]
[405815552,1771333856036,-79683.37404482,0.0003561,2]
[405815554,1771333856045,-4446.04659389,0.0003561,2]
[405815556,1771333856055,-5000.0,0.0003561,2]
[405815558,1771333856064,-1000.0,0.00035616,120]
[405815560,1771333856074,-896.23,0.00035616,2]
[405815561,1771333856083,-2045.7,0.00035716,7]
[405815563,1771333856093,-2380.71,0.000358,2]
[405815565,1771333856103,-947.22,0.000358,30]
[405815567,1771333856113,-1145.15,0.000358,14]
[405815570,1771333856123,-2000.0,0.000359,2]
[405815572,1771333856133,-561.04,0.00036,30]
[405815574,1771333856142,-159.999999,0.00036,2]
[405815575,1771333856151,-2275.94285182,0.00036,2]
[405815578,1771333856163,-235362.49860942,0.00036,2]
[405815580,1771333856172,-500.0,0.00036,120]
[405815581,1771333856182,-404.0,0.00036247,30]
[405815583,1771333856191,-59663.01317513,0.00036321,7]
[405815664,1771333857031,-858.87950471,0.000179,2]
[405815670,1771333857078,-5696.69572864,0.000179,2]
[405815672,1771333857088,-151.0,0.00022,2]
[405815674,1771333857098,-151.0,0.00022,2]
[405815676,1771333857107,-151.0,0.00027,2]
[405815678,1771333857117,-151.0,0.00027,2]
[405815680,1771333857127,-1654.59234779,0.00036321,7]
[405815682,1771333857138,-977.84628346,0.00036321,7]
[405815722,1771333857504,-1051.12862644,0.000179,2]
[405815724,1771333857513,-156.268,0.00017999,2]
[405815726,1771333857523,-155.0,0.00019799,2]
[405815728,1771333857532,-155.0,0.00021599,2]
[405815730,1771333857541,-151.0,0.00022,2]
[405815732,1771333857550,-155.0,0.00025199,2]
[405815734,1771333857559,-151.0,0.00027,2]
[405815736,1771333857568,-155.0,0.00032398,2]
[405815738,1771333857577,-22.60337356,0.00036321,7]
[405816468,1771333918770,10000.01,7.084e-05,2]
[405816469,1771333918793,10000.01,7.084e-05,2]
[405816470,1771333918815,10000.01,7.084e-05,2]
[405816471,1771333918837,10000.01,7.084e-05,2]
[405816472,1771333918859,10000.01,7.084e-05,2]
[405816473,1771333918881,10000.01,7.084e-05,2]
[405816474,1771333918904,10000.01,7.084e-05,2]
[405816475,1771333918926,10000.01,7.084e-05,2]
[405816476,1771333918950,10000.01,7.084e-05,2]
[405816477,1771333918972,10000.01,7.084e-05,2]
[405816479,1771333965724,-500.0,6.67e-05,2]
[405816480,1771333965751,-500.0,6.67e-05,2]
[405816481,1771333965775,-500.0,6.67e-05,2]
[405816482,1771333965800,-500.0,6.67e-05,2]
[405816483,1771333965825,-500.0,6.67e-05,2]
[405816484,1771333965850,-588.5483521,6.67e-05,2]
[405816485,1771333965873,-500.0,6.67e-05,2]
[405816486,1771333965898,-500.0,6.67e-05,2]
[405816487,1771333965925,-500.0,6.67e-05,2]
[405816488,1771333965950,-411.4516479,6.67e-05,2]
[405816489,1771333967884,-88.5483521,6.67e-05,2]
[405816490,1771333967910,-500.0,6.67e-05,2]
[405816491,1771333967934,-500.0,6.67e-05,2]
[405816492,1771333967958,-500.0,6.67e-05,2]
[405816493,1771333967980,-500.0,6.67e-05,2]
[405816494,1771333968004,-500.0,6.67e-05,2]
[405816495,1771333968028,-500.0,6.67e-05,2]
[405816496,1771333968052,-500.0,6.67e-05,2]
[405816497,1771333968076,-500.0,6.67e-05,2]
[405816498,1771333968100,-500.0,6.67e-05,2]
[405816499,1771333968124,-411.4516479,6.67e-05,2]
[405816500,1771333972264,-88.5483521,6.67e-05,2]
[405816501,1771333972294,-500.0,6.67e-05,2]
[405816502,1771333972319,-500.0,6.67e-05,2]
[405816503,1771333972345,-111.4516479,6.67e-05,2]
[405816504,1771333974917,-388.5483521,6.67e-05,2]
[405816505,1771333974942,-500.0,6.67e-05,2]
[405816506,1771333974966,-500.0,6.67e-05,2]
[405816507,1771333974991,-500.0,6.67e-05,2]
[405816508,1771333975016,-111.4516479,6.67e-05,2]
[405816509,1771334001523,-300.0,7.083e-05,2]
[405816510,1771334026237,3661.14854448,6.9e-05,3]
[405816511,1771334026274,6294.50995285,6.9e-05,3]
[405816512,1771334026314,4538.9356806,6.9e-05,3]
[405816513,1771334026399,3912.09877723,6.9e-05,3]
[405816514,1771334026429,1504.62403949,6.9e-05,3]
[405816515,1771334026465,6294.50995285,6.9e-05,3]
[405816516,1771334041548,300.0,7.083e-05,2]
[405816517,1771334055223,500.0,6.571e-05,2]
[405816518,1771334078249,150.0,0.00011171,7]
[405816519,1771334101297,300.0,7.083e-05,2]
[405816520,1771334110039,416.10622614,7.083e-05,2]
[405816521,1771334129208,500.0,7.083e-05,2]
[405816522,1771334129247,500.0,7.083e-05,2]
[405816523,1771334129319,500.0,7.083e-05,2]
[405816524,1771334129370,500.0,7.083e-05,2]
[405816525,1771334129426,500.0,7.083e-05,2]
[405816526,1771334129478,500.0,7.083e-05,2]
[405816527,1771334129524,500.0,7.083e-05,2]
[405816528,1771334129566,500.0,7.083e-05,2]
[405816529,1771334129609,500.0,7.083e-05,2]
[405816530,1771334129675,500.0,7.083e-05,2]
[405816531,1771334129717,500.0,7.083e-05,2]
[405816532,1771334129757,500.0,7.083e-05,2]
[405816533,1771334129802,500.0,7.083e-05,2]
[405816534,1771334129857,500.0,7.083e-05,2]
[405816535,1771334129909,500.0,7.083e-05,2]
[405816536,1771334129960,500.0,7.083e-05,2]
[405816537,1771334130012,483.90377386,7.083e-05,2]
[405816538,1771334130039,16.09622614,7.083e-05,2]
[405816539,1771334130079,500.0,7.083e-05,2]
[405816540,1771334130120,158.5483521,7.083e-05,2]
[405816541,1771334130161,500.0,7.083e-05,2]
[405816542,1771334130203,500.0,7.083e-05,2]
[405816543,1771334130248,500.0,7.083e-05,2]
[405816544,1771334130295,500.0,7.083e-05,2]
[405816545,1771334130336,500.0,7.083e-05,2]
[405816546,1771334145277,500.0,7.083e-05,2]
[405816547,1771334145318,500.0,7.083e-05,2]
[405816548,1771334179039,226.86342393,7.083e-05,2]
[405816549,1771334199266,500.0,7.083e-05,2]
[405816550,1771334205879,500.0,7.083e-05,2]
[405816551,1771334208738,3441.96439629,6.9e-05,3]
[405816552,1771334208792,5417.14303406,6.9e-05,3]
[405816553,1771334208836,4923.34837462,6.9e-05,3]
[405816554,1771334208887,5910.93769351,6.9e-05,3]
[405816555,1771334236364,4598.50199783,6.984e-05,2]
[405816556,1771334236389,10000.01,6.984e-05,2]
[405816557,1771334236414,10000.01,6.984e-05,2]
[405816558,1771334236437,10000.01,6.984e-05,2]
[405816559,1771334236464,10000.01,6.984e-05,2]
[405816560,1771334236489,10000.01,6.984e-05,2]
[405816561,1771334236513,10000.01,6.984e-05,2]
[405816562,1771334236537,10000.01,6.984e-05,2]
[405816563,1771334236561,10000.01,6.984e-05,2]
[405816564,1771334236586,10000.01,6.984e-05,2]
[405816565,1771334281727,300.0,6.983e-05,2]
[405816566,1771334341505,300.0,6.983e-05,2]
[405816567,1771334344279,291.2743583,6.983e-05,2]
[405816568,1771334344564,158.80439675,6.983e-05,2]
[405816569,1771334363419,500.0,6.983e-05,2]
[405816570,1771334363472,350.9498169,6.983e-05,2]
[405816571,1771334394565,1769.78623193,6.8e-05,3]
[405816572,1771334394600,2984.62590589,6.8e-05,3]
[405816573,1771334394717,2498.6900363,6.8e-05,3]
[405816574,1771334394782,2741.6579711,6.8e-05,3]
[405816575,1771334401455,1200.0,6.983e-05,2]
[405816576,1771334401905,-5000.01,6.984e-05,2]
[405816577,1771334402109,-5000.01,6.984e-05,2]
[405816578,1771334402264,-5000.01,6.984e-05,2]
[405816579,1771334402399,-5000.01,6.984e-05,2]
[405816580,1771334402508,-5000.01,6.984e-05,2]
[405816581,1771334402628,-5000.01,6.984e-05,2]
[405816582,1771334403764,210.0,6.984e-05,2]
[405816583,1771334406648,-5000.01,6.984e-05,2]
[405816584,1771334406814,-5000.01,6.984e-05,2]
[405816585,1771334407727,-5000.01,6.984e-05,2]
[405816586,1771334407836,-5000.01,6.984e-05,2]
[405816587,1771334407966,-5000.01,6.984e-05,2]
[405816588,1771334408167,-5000.01,6.984e-05,2]
[405816589,1771334408233,-5000.01,6.984e-05,2]
[405816590,1771334408381,-5000.01,6.984e-05,2]
[405816591,1771334408484,-5000.01,6.984e-05,2]
[405816592,1771334408624,-5000.01,6.984e-05,2]
[405816593,1771334465790,203.89205081,6.983e-05,2]
[405816594,1771334492998,5480.123,6.845e-05,2]
[405816595,1771334493040,492.739,6.845e-05,2]
[405816596,1771334531954,-1000.0,6.984e-05,2]
[405816597,1771334534416,-1000.0,6.984e-05,2]
[405816598,1771334535543,-1000.0,6.984e-05,2]
[405816599,1771334535889,-1000.0,6.984e-05,2]
[405816600,1771334536195,-1000.0,6.984e-05,2]
[405816601,1771334536594,-1000.0,6.984e-05,2]
[405816602,1771334537046,-1000.0,6.984e-05,2]
[405816603,1771334537381,-1000.0,6.984e-05,2]
[405816604,1771334537903,-1000.0,6.984e-05,2]
[405816605,1771334538057,-1000.0,6.984e-05,2]
[405816606,1771334538410,-1000.0,6.984e-05,2]
[405816607,1771334538814,-1000.0,6.984e-05,2]
[405816608,1771334539286,-1000.0,6.984e-05,2]
[405816609,1771334539585,-1000.0,6.984e-05,2]
[405816610,1771334540157,-1000.0,6.984e-05,2]
[405816611,1771334540325,-1000.0,6.984e-05,2]
[405816612,1771334541020,-1000.0,6.984e-05,2]
[405816613,1771334541091,-1000.0,6.984e-05,2]
[405816614,1771334541409,-1000.0,6.984e-05,2]
[405816615,1771334541781,-1000.0,6.984e-05,2]
[405816616,1771334542153,-1000.0,6.984e-05,2]
[405816617,1771334542562,-1000.0,6.984e-05,2]
[405816618,1771334544201,-1000.0,6.984e-05,2]
[405816619,1771334544240,-1000.0,6.984e-05,2]
[405816620,1771334544279,-1000.0,6.984e-05,2]
[405816621,1771334544344,-1000.0,6.984e-05,2]
[405816622,1771334544524,-1000.0,6.984e-05,2]
[405816623,1771334544962,-1000.0,6.984e-05,2]
[405816624,1771334545408,-1000.0,6.984e-05,2]
[405816625,1771334545780,-1000.0,6.984e-05,2]
[405816626,1771334546229,-1000.0,6.984e-05,2]
[405816627,1771334546693,-1000.0,6.984e-05,2]
[405816628,1771334547384,-1000.0,6.984e-05,2]
[405816629,1771334547441,-1000.0,6.984e-05,2]
[405816630,1771334547815,-1000.0,6.984e-05,2]
[405816631,1771334548186,-1000.0,6.984e-05,2]
[405816632,1771334548857,-1000.0,6.984e-05,2]
[405816633,1771334548991,-1000.0,6.984e-05,2]
[405816634,1771334549297,-1000.0,6.984e-05,2]
[405816635,1771334549667,-1000.0,6.984e-05,2]
[405816636,1771334550235,-1000.0,6.984e-05,2]
[405816637,1771334550592,-1000.0,6.984e-05,2]
[405816638,1771334550821,-1000.0,6.984e-05,2]
[405816639,1771334551214,-1000.0,6.984e-05,2]
[405816640,1771334551564,-1000.0,6.984e-05,2]
[405816641,1771334551940,-1000.0,6.984e-05,2]
[405816642,1771334552358,-1000.0,6.984e-05,2]
[405816643,1771334552961,-1000.0,6.984e-05,2]
[405816644,1771334553331,-1000.0,6.984e-05,2]
[405816645,1771334553505,-1000.0,6.984e-05,2]
[405816646,1771334554717,-1000.0,6.984e-05,2]
[405816647,1771334554786,-1000.0,6.984e-05,2]
[405816648,1771334555438,-1000.0,6.984e-05,2]
[405816649,1771334559540,10000.01,6.884e-05,2]
[405816650,1771334559564,10000.01,6.884e-05,2]
[405816651,1771334559588,10000.01,6.884e-05,2]
[405816652,1771334559612,10000.01,6.884e-05,2]
[405816653,1771334559639,10000.01,6.884e-05,2]
[405816654,1771334559663,10000.01,6.884e-05,2]
[405816655,1771334559688,10000.01,6.884e-05,2]
[405816656,1771334559712,10000.01,6.884e-05,2]
[405816657,1771334559737,10000.01,6.884e-05,2]
[405816658,1771334559761,10000.01,6.884e-05,2]
[405816659,1771334559785,10000.01,6.884e-05,2]
[405816660,1771334559809,10000.01,6.884e-05,2]
[405816661,1771334559836,10000.01,6.884e-05,2]
[405816662,1771334559860,10000.01,6.884e-05,2]
[405816663,1771334559888,10000.01,6.884e-05,2]
[405816664,1771334559911,1000.0,6.884e-05,2]
[405816665,1771334559934,1000.0,6.884e-05,2]
[405816666,1771334559956,1000.0,6.884e-05,2]
[405816667,1771334559978,1000.0,6.884e-05,2]
[405816668,1771334560000,1000.0,6.884e-05,2]
[405816669,1771334560025,1000.0,6.884e-05,2]
[405816670,1771334560047,1000.0,6.884e-05,2]
[405816671,1771334560069,1000.0,6.884e-05,2]
[405816672,1771334560092,1000.0,6.884e-05,2]
[405816673,1771334560119,5000.01,6.884e-05,2]
[405816674,1771334560143,5000.01,6.884e-05,2]
[405816675,1771334560166,5000.01,6.884e-05,2]
[405816676,1771334560189,5000.01,6.884e-05,2]
[405816677,1771334560212,5000.01,6.884e-05,2]
[405816678,1771334560234,5000.01,6.884e-05,2]
[405816679,1771334560257,5000.01,6.884e-05,2]
[405816680,1771334560282,5000.01,6.884e-05,2]
[405816681,1771334560331,-1000.0,6.884e-05,2]
[405816682,1771334560491,-1000.0,6.884e-05,2]
[405816683,1771334560550,-1000.0,6.884e-05,2]
[405816684,1771334560751,-1000.0,6.884e-05,2]
[405816685,1771334562203,-1000.0,6.884e-05,2]
[405816686,1771334562617,-1000.0,6.884e-05,2]
[405816687,1771334563066,-1000.0,6.884e-05,2]
[405816688,1771334563756,-1000.0,6.884e-05,2]
[405816689,1771334563965,-1000.0,6.884e-05,2]
[405816690,1771334565310,-1000.0,6.884e-05,2]
[405816691,1771334565370,-1000.0,6.884e-05,2]
[405816692,1771334565409,-1000.0,6.884e-05,2]
[405816693,1771334565604,-1000.0,6.884e-05,2]
[405816694,1771334566400,-1000.0,6.884e-05,2]
[405816695,1771334566451,-1000.0,6.884e-05,2]
[405816696,1771334566804,-1000.0,6.884e-05,2]
[405816697,1771334567418,-1000.0,6.884e-05,2]
[405816698,1771334567584,-1000.0,6.884e-05,2]
[405816699,1771334568030,-1000.0,6.884e-05,2]
[405816700,1771334568388,-1000.0,6.884e-05,2]
[405816701,1771334568567,-5000.01,6.884e-05,2]
[405816702,1771334568728,-5000.01,6.884e-05,2]
[405816703,1771334568833,-1000.0,6.884e-05,2]
[405816704,1771334569111,-5000.01,6.884e-05,2]
[405816705,1771334569136,-5000.01,6.884e-05,2]
[405816706,1771334569239,-5000.01,6.884e-05,2]
[405816707,1771334569344,-5000.01,6.884e-05,2]
[405816708,1771334569386,-1000.0,6.884e-05,2]
[405816709,1771334569486,-5000.01,6.884e-05,2]
[405816710,1771334569591,-5000.01,6.884e-05,2]
[405816711,1771334569618,-1000.0,6.884e-05,2]
[405816712,1771334569721,-5000.01,6.884e-05,2]
[405816713,1771334569835,-5000.01,6.884e-05,2]
[405816714,1771334570019,-1000.0,6.884e-05,2]
[405816715,1771334570256,2586.65547259,6.7e-05,3]
[405816716,1771334570313,4048.64875615,6.7e-05,3]
[405816717,1771334570360,3683.15043526,6.7e-05,3]
[405816718,1771334570427,4414.14707704,6.7e-05,3]
[405816719,1771334570456,-1000.0,6.884e-05,2]
[405816720,1771334570845,-1000.0,6.884e-05,2]
[405816721,1771334571170,-5000.01,6.884e-05,2]
[405816722,1771334571262,-1000.0,6.884e-05,2]
[405816723,1771334571371,-5000.01,6.884e-05,2]
[405816724,1771334571420,-5000.01,6.884e-05,2]
[405816725,1771334571675,-1000.0,6.884e-05,2]
[405816726,1771334572245,-1000.0,6.884e-05,2]
[405816727,1771334572481,-1000.0,6.884e-05,2]
[405816728,1771334572923,-1000.0,6.884e-05,2]
[405816729,1771334574289,-1000.0,6.884e-05,2]
[405816730,1771334575997,-1000.0,6.884e-05,2]
[405816731,1771334578936,-1000.0,6.884e-05,2]
[405816732,1771334580241,-1000.0,6.884e-05,2]
[405816733,1771334586639,-1000.0,6.884e-05,2]
[405816734,1771334588059,-1000.0,6.884e-05,2]
[405816735,1771334589552,-614.98008044,6.884e-05,2]
[405816736,1771334589576,-385.01991956,6.884e-05,2]
[405816737,1771334591158,-1000.0,6.884e-05,2]
[405816738,1771334592223,-1000.0,6.884e-05,2]
[405816739,1771334593491,-1000.0,6.884e-05,2]
[405816740,1771334597554,-1000.0,6.884e-05,2]
[405816741,1771334598601,-1000.0,6.884e-05,2]
[405816742,1771334600141,-1000.0,6.884e-05,2]
[405816743,1771334600932,-1000.0,6.884e-05,2]
[405816744,1771334606570,-1000.0,6.884e-05,2]
[405816745,1771334608206,-1000.0,6.884e-05,2]
[405816746,1771334608671,-1000.0,6.884e-05,2]
[405816747,1771334610270,-1000.0,6.884e-05,2]
[405816748,1771334613411,-1000.0,6.884e-05,2]
[405816749,1771334614618,-1000.0,6.884e-05,2]
[405816750,1771334615748,-1000.0,6.884e-05,2]
[405816751,1771334618762,-1000.0,6.884e-05,2]
[405816752,1771334622444,-1000.0,6.884e-05,2]
[405816753,1771334623625,-1000.0,6.884e-05,2]
[405816755,1771334751513,2979.9590421,6.7e-05,3]
[405816756,1771334751555,4253.44061105,6.7e-05,3]
[405816757,1771334751609,4677.93446736,6.7e-05,3]
[405816758,1771334751668,5102.42832368,6.7e-05,3]
[405816765,1771334879235,10000.01,6.784e-05,2]
[405816766,1771334880015,-5000.01,6.784e-05,2]
[405816767,1771334880505,-5000.01,6.784e-05,2]
[405816768,1771334880620,-5000.01,6.784e-05,2]
[405816769,1771334885786,-5000.01,6.784e-05,2]
[405816770,1771334885893,-5000.01,6.784e-05,2]
[405816771,1771334886040,-5000.01,6.784e-05,2]
[405816772,1771334887218,-8900.05385786,6.784e-05,2]
[405816773,1771334887234,-10000.01,6.784e-05,2]
[405816774,1771334887250,-10000.01,6.784e-05,2]
[405816775,1771334887266,-10000.01,6.784e-05,2]
[405816776,1771334887282,-10000.01,6.784e-05,2]
[405816777,1771334887309,-10000.01,6.784e-05,2]
[405816778,1771334887325,-10000.01,6.784e-05,2]
[405816779,1771334887340,-10000.01,6.784e-05,2]
[405816780,1771334887361,-10000.01,6.784e-05,2]
[405816781,1771334889055,-10000.01,6.784e-05,2]
[405816782,1771334901091,150.0,7.917e-05,5]
[405816783,1771334913017,629.91614877,0.0001,120]
[405816784,1771334924789,4990.35518161,6.6e-05,3]
[405816785,1771334924826,8620.62156782,6.6e-05,3]
[405816786,1771334924867,6200.44397701,6.6e-05,3]
[405816787,1771334925312,8620.62156782,6.6e-05,3]
[405816788,1771334925354,2334.30588447,6.6e-05,3]
[405816789,1771334925385,5076.22688795,6.6e-05,3]
[405816790,1771334927677,4826.22,6.734e-05,2]
[405816794,1771335032119,-300.0,6.783e-05,2]
[405816796,1771335032129,-1053.82,6.783e-05,2]
[405816798,1771335032142,-146.18,6.783e-05,2]
[405816799,1771335032151,-150.0,6.783e-05,2]
[405816800,1771335032162,-659.74599529,6.783e-05,2]
[405816801,1771335032172,-659.74599529,6.783e-05,2]
[405816802,1771335032181,-659.74599529,6.783e-05,2]
[405816803,1771335032192,-659.74599529,6.783e-05,2]
[405816804,1771335032203,-659.74599529,6.783e-05,2]
[405816805,1771335032213,-390.53742996,6.783e-05,2]
[405816806,1771335032229,-269.20856533,6.783e-05,2]
[405816807,1771335032238,-659.74599529,6.783e-05,2]
[405816808,1771335032248,-659.74599529,6.783e-05,2]
[405816809,1771335032258,-659.74599529,6.783e-05,2]
[405816810,1771335032269,-2.93801058,6.783e-05,2]
[405816811,1771335032281,-656.80798471,6.783e-05,2]
[405816812,1771335032291,-659.74599529,6.783e-05,2]
[405816813,1771335032303,-659.74599529,6.783e-05,2]
[405816814,1771335032312,-392.92229695,6.783e-05,2]
[405816815,1771335032325,-266.82369834,6.783e-05,2]
[405816816,1771335032335,-190.94334449,6.783e-05,2]
[405816817,1771335032348,-468.8026508,6.783e-05,2]
[405816818,1771335032358,-659.74599529,6.783e-05,2]
[405816820,1771335032367,-659.74599529,6.783e-05,2]
[405816822,1771335032378,-60.46292713,6.783e-05,2]
[405816824,1771335032390,-599.28306816,6.783e-05,2]
[405816826,1771335032400,-659.74599529,6.783e-05,2]
[405816828,1771335032411,-284.54147721,6.783e-05,2]
[405816833,1771335032479,-375.20451808,6.783e-05,2]
[405816836,1771335032489,-659.74599529,6.783e-05,2]
[405816839,1771335032501,-659.74599529,6.783e-05,2]
[405816841,1771335032512,-459.89432355,6.783e-05,2]
[405816843,1771335032525,-199.85167174,6.783e-05,2]
[405816844,1771335032536,-659.74599529,6.783e-05,2]
[405816845,1771335032547,-659.74599529,6.783e-05,2]
[405816846,1771335032557,-659.74599529,6.783e-05,2]
[405816847,1771335032567,-659.74599529,6.783e-05,2]
[405816848,1771335032579,-659.74599529,6.783e-05,2]
[405816849,1771335032590,-659.74599529,6.783e-05,2]
[405816850,1771335032600,-659.74599529,6.783e-05,2]
[405816851,1771335032612,-659.74599529,6.783e-05,2]
[405816852,1771335032622,-659.74599529,6.783e-05,2]
[405816853,1771335032632,-659.74599529,6.783e-05,2]
[405816854,1771335032642,-659.74599529,6.783e-05,2]
[405816855,1771335032653,-659.74599529,6.783e-05,2]
[405816856,1771335032663,-659.74599529,6.783e-05,2]
[405816857,1771335032674,-659.74599529,6.783e-05,2]
[405816858,1771335032685,-659.74599529,6.783e-05,2]
[405816859,1771335032695,-659.74599529,6.783e-05,2]
[405816860,1771335032705,-659.74599529,6.783e-05,2]
[405816861,1771335032717,-659.74599529,6.783e-05,2]
[405816862,1771335032727,-659.74599529,6.783e-05,2]
[405816863,1771335032738,-659.74599529,6.783e-05,2]
[405816864,1771335032749,-659.74599529,6.783e-05,2]
[405816865,1771335032759,-659.74599529,6.783e-05,2]
[405816866,1771335032770,-659.74599529,6.783e-05,2]
[405816867,1771335032779,-659.74599529,6.783e-05,2]
[405816868,1771335032789,-647.75061356,6.783e-05,2]
[405816869,1771335032810,-647.75061356,6.783e-05,2]
[405816870,1771335032829,-647.75061356,6.783e-05,2]
[405816871,1771335032847,-647.75061356,6.783e-05,2]
[405816872,1771335032859,-647.75061356,6.783e-05,2]
[405816873,1771335032870,-647.75061356,6.783e-05,2]
[405816874,1771335032880,-647.75061356,6.783e-05,2]
[405816875,1771335032893,-647.75061356,6.783e-05,2]
[405816876,1771335032903,-647.75061356,6.783e-05,2]
[405816877,1771335032915,-647.75061356,6.783e-05,2]
[405816878,1771335032925,-647.75061356,6.783e-05,2]
[405816879,1771335032936,-647.75061356,6.783e-05,2]
[405816880,1771335032946,-647.75061356,6.783e-05,2]
[405816881,1771335032957,-647.75061356,6.783e-05,2]
[405816882,1771335032967,-647.75061356,6.783e-05,2]
[405816883,1771335032978,-647.75061356,6.783e-05,2]
[405816884,1771335032987,-647.75061356,6.783e-05,2]
[405816885,1771335032998,-647.75061356,6.783e-05,2]
[405816886,1771335033008,-647.75061356,6.783e-05,2]
[405816887,1771335033019,-647.75061356,6.783e-05,2]
[405816888,1771335033032,-647.75061356,6.783e-05,2]
[405816889,1771335033043,-647.75061356,6.783e-05,2]
[405816890,1771335033056,-647.75061356,6.783e-05,2]
[405816891,1771335033067,-647.75061356,6.783e-05,2]
[405816892,1771335033081,-647.75061356,6.783e-05,2]
[405816893,1771335033092,-647.75061356,6.783e-05,2]
[405816894,1771335033104,-647.75061356,6.783e-05,2]
[405816895,1771335033115,-647.75061356,6.783e-05,2]